fUST/lending_fUST_20251105
["ID","MTS","AMOUNT","RATE_DAILY","PERIOD"]
[393209781,1762321553179,-861.32017838,0.00054221,30]
[393209782,1762321553277,-3269.0,0.00054221,30]
[393209783,1762321553375,-3269.0,0.00054221,30]
[393209784,1762321553478,-3269.0,0.00054221,30]
[393209785,1762321553577,-3269.0,0.00054221,30]
[393209786,1762321553679,-3269.0,0.00054221,30]
[393209787,1762321553777,-3269.0,0.00054221,30]
[393209788,1762321553874,-3269.0,0.00054221,30]
[393209789,1762321553971,-3269.0,0.00054221,30]
[393209790,1762321554071,-3269.0,0.00054221,30]
[393209791,1762321554168,-3269.0,0.00054221,30]
[393209792,1762321554268,-3269.0,0.00054221,30]
[393209793,1762321554366,-3269.0,0.00054221,30]
[393209794,1762321554472,-3269.0,0.00054221,30]
[393209795,1762321554573,-3269.0,0.00054221,30]
[393209796,1762321554671,-3269.0,0.00054221,30]
[393209797,1762321554769,-3269.0,0.00054221,30]
[393209798,1762321554865,-3269.0,0.00054221,30]
[393209799,1762321554961,-3269.0,0.00054221,30]
[393209800,1762321555059,-3269.0,0.00054221,30]
[393209801,1762321555162,-3269.0,0.00054221,30]
[393209802,1762321555266,-3269.0,0.00054221,30]
[393209803,1762321555365,-3269.0,0.00054221,30]
[393209804,1762321555463,-3269.0,0.00054221,30]
[393209805,1762321555563,-3271.4800836,0.00054221,30]
[393209806,1762321555661,-151.0,0.00054221,30]
[393209807,1762321555755,-151.0,0.00054221,30]
[393209808,1762321555849,-205.09213973,0.00054221,30]
[393209809,1762321555944,-796.0,0.00054221,30]
[393209810,1762321556042,-796.0,0.00054221,30]
[393209811,1762321556142,-796.0,0.00054221,30]
[393209812,1762321556244,-796.0,0.00054221,30]
[393209813,1762321556343,-796.0,0.00054221,30]
[393209814,1762321556443,-796.0,0.00054221,30]
[393209815,1762321556538,-796.0,0.00054221,30]
[393209816,1762321556631,-1736.11,0.00054246,120]
[393209817,1762321556729,-1593.41,0.00054246,120]
[393209818,1762321556826,-500.0,0.00054411,90]
[393209819,1762321556922,-252396.21660694,0.00054444,30]
[393209823,1762321609134,-13.77256137,0.00015988,2]
[393209824,1762321609156,-150.0,0.00016005,2]
[393209825,1762321609177,-901.9686674,0.00016054,2]
[393209826,1762321609198,-1000.0,0.00016088,2]
[393209827,1762321609217,-1201.2312628,0.00016106,2]
[393209828,1762321609237,-5015.0,0.000167,2]
[393209829,1762321609256,-300.0,0.00016798,2]
[393209830,1762321609276,-3139.82516298,0.00016799,2]
[393209832,1762321681594,1534.0,0.000215,4]
[393209833,1762321687476,328.91710989,0.00021499,4]
[393209834,1762321694033,394.35421903,0.00021499,4]
[393209835,1762321703663,394.55119668,0.00021499,4]
[393209836,1762321715676,246.16,0.00017663,3]
[393209837,1762321726525,738.52,0.00017663,3]
[393209838,1762321743178,364.12123056,0.00037721,60]
[393209839,1762321749777,289.25377798,0.00037721,60]
[393209840,1762321756256,498.79071197,0.00037721,60]
[393209847,1762321786800,169.332619,8.156e-05,2]
[393209848,1762321788311,480.68894091,0.00037721,60]
[393209849,1762321791889,483.22033117,0.00037721,60]
[393209850,1762321793695,447.34289716,0.00037721,60]
[393209851,1762321803267,494.45066458,0.00037721,60]
[393209852,1762321803790,2000.0,0.0002,7]
[393209853,1762321804114,2000.0,0.00021429,7]
[393209854,1762321815069,181.42,0.00017524,30]
[393209855,1762321819388,330.03727671,0.00037721,60]
[393209856,1762321826819,353.11130926,0.00037721,60]
[393209859,1762321831340,299.54903422,0.00037721,60]
[393209927,1762321832348,-169.332619,0.00015992,2]
[393209930,1762321832358,-344.27109478,0.00016245,2]
[393209932,1762321832367,-228.57,0.00016689,2]
[393209934,1762321832377,-1860.17483702,0.00016799,2]
[393209936,1762321832386,-300.0,0.000168,2]
[393209938,1762321832395,-300.0,0.000168,2]
[393209940,1762321832404,-300.0,0.000168,2]
[393209942,1762321832413,-300.0,0.000168,2]
[393209944,1762321832423,-300.0,0.00016972,2]
[393209946,1762321832433,-300.0,0.00016972,2]
[393209948,1762321832442,-300.0,0.00016972,2]
[393209950,1762321832451,-300.0,0.00016972,2]
[393209952,1762321832460,-1200.0,0.00016972,2]
[393209954,1762321832469,-500.0,0.00016973,2]
[393209956,1762321832478,-502.03505715,0.00016973,2]
[393209958,1762321832488,-500.0,0.00016973,2]
[393209960,1762321832497,-500.0,0.00016973,2]
[393209962,1762321832506,-502.57278473,0.00016973,2]
[393209964,1762321832516,-500.0,0.00016973,2]
[393209966,1762321832525,-500.0,0.00016973,2]
[393209968,1762321832534,-500.0,0.00016973,2]
[393209970,1762321832543,-2298.33672942,0.0001699,2]
[393209972,1762321832553,-16005.70687792,0.00016998,2]
[393209974,1762321832566,-500.0,0.00016998,2]
[393209977,1762321832576,-973.57,0.00016998,2]
[393209979,1762321832587,-1397.82625172,0.00016998,2]
[393209981,1762321832597,-241.09486489,0.00016999,2]
[393209983,1762321832606,-664.00593261,0.00016999,2]
[393210544,1762321838076,-292.4298087,0.00016118,2]
[393210546,1762321838086,-196.14555551,0.00016999,2]
[393210551,1762321838129,-4139.84851188,0.00016999,2]
[393210553,1762321838139,-500.0,0.00016999,2]
[393210555,1762321838152,-563.20591387,0.00016999,2]
[393210557,1762321838161,-417.33636993,0.00016999,2]
[393210559,1762321838171,-500.0,0.00016999,2]
[393210561,1762321838181,-500.0,0.00016999,2]
[393210563,1762321838190,-500.0,0.00016999,2]
[393210565,1762321838200,-8821.34764361,0.00017,2]
[393210637,1762321838876,280.0,0.00018289,5]
[393210730,1762321840607,-0.00665333,0.00016997,2]
[393210903,1762321843313,-499.99334667,0.00016997,2]
[393210904,1762321843324,-585.05118505,0.00016998,2]
[393210905,1762321843334,-8636.31351608,0.00017,2]
[393210906,1762321843345,-448.60249116,0.00017,2]
[393210907,1762321843355,-167.5545439,0.00017,2]
[393210908,1762321843364,-190.8362626,0.00017,2]
[393210909,1762321843373,-591.8931998,0.00017,2]
[393210910,1762321843383,-424.0619366,0.00017,2]
[393210911,1762321843393,-152.61,0.00017,2]
[393210912,1762321843403,-191.98654262,0.00017293,2]
[393210913,1762321843414,-500.0,0.00017339,2]
[393210914,1762321843425,-300.0,0.00017339,2]
[393210915,1762321843437,-300.0,0.00017339,2]
[393210916,1762321843446,-300.0,0.00017339,2]
[393210917,1762321843455,-300.0,0.00017339,2]
[393210918,1762321843466,-300.0,0.00017339,2]
[393210919,1762321843476,-300.0,0.00017339,2]
[393210920,1762321843485,-300.0,0.00017339,2]
[393210921,1762321843495,-300.0,0.00017339,2]
[393210922,1762321843505,-300.0,0.00017339,2]
[393210923,1762321843514,-300.0,0.00017339,2]
[393210924,1762321843523,-300.0,0.00017339,2]
[393210925,1762321843533,-300.0,0.00017339,2]
[393210926,1762321843542,-300.0,0.00017339,2]
[393210927,1762321843552,-300.0,0.00017339,2]
[393210928,1762321843561,-300.0,0.00017339,2]
[393210929,1762321843570,-167.09,0.00017339,2]
[393210930,1762321843579,-190.8362626,0.000174,2]
[393210931,1762321843589,-299.6635978,0.000174,2]
[393210933,1762321843598,-299.6635978,0.000174,2]
[393210935,1762321843607,-190.8362626,0.000174,2]
[393210937,1762321843616,-306.5173801,0.000174,2]
[393210939,1762321843625,-163.8562911,0.000174,2]
[393210941,1762321843634,-195.2698385,0.000174,2]
[393210943,1762321843643,-591.8931998,0.000174,2]
[393210944,1762321843652,-130.6140053,0.00017468,2]
[393210945,1762321843661,-457.13,0.00017483,2]
[393210946,1762321843671,-190.8362626,0.000175,2]
[393210947,1762321843679,-153.0,0.000175,2]
[393210948,1762321843688,-299.6635978,0.000175,2]
[393210949,1762321843697,-190.8362626,0.000175,2]
[393210950,1762321843706,-163.8983167,0.000175,2]
[393210951,1762321843714,-190.8866442,0.000175,2]
[393210952,1762321843723,-592.0428383,0.000175,2]
[393210953,1762321843732,-316.4080366,0.000175,2]
[393210954,1762321843741,-591.8931998,0.000175,2]
[393210955,1762321843749,-328.4951914,0.000175,2]
[393210956,1762321843758,-591.8931998,0.000175,2]
[393210957,1762321843767,-1000.0,0.00017521,2]
[393210958,1762321843776,-1008.83194994,0.00017521,2]
[393210959,1762321843785,-1000.0,0.00017521,2]
[393210960,1762321843794,-1000.0,0.00017521,2]
[393210961,1762321843804,-503.82863137,0.00017521,2]
[393210962,1762321843814,-21978.97759368,0.00017574,2]
[393210963,1762321843830,-4155.27195149,0.00017574,2]
[393210964,1762321843842,-1263.549511,0.00017574,2]
[393210965,1762321843921,-1302.42196162,0.00017574,2]
[393210978,1762321846631,425.64421989,0.00037721,60]
[393210979,1762321846721,-2281.28905335,0.00017574,2]
[393210980,1762321862449,170.05200311,0.00037721,60]
[393210981,1762321864687,490.0712869,0.00037721,60]
[393210982,1762321878446,5888.0,0.000215,4]
[393210983,1762321879551,340.64639804,0.00037721,60]
[393210984,1762321881165,5888.0,0.000215,4]
[393210985,1762321883803,5888.0,0.000215,4]
[393210986,1762321883974,864.0,0.0002181,20]
[393210987,1762321886636,576.0,0.000215,4]
[393210989,1762321900317,2405.03,0.00017663,3]
[393210990,1762321910950,1202.52,0.00017663,3]
[393210991,1762321919164,466.91880211,0.00037721,60]
[393210992,1762321921591,601.26,0.00017663,3]
[393210995,1762321928445,339.59921403,0.00037721,60]
[393210996,1762321932365,300.63,0.00017663,3]
[393210997,1762321940995,171.50385166,0.00037721,60]
[393210998,1762321943036,150.31,0.00017663,3]
[393210999,1762321946176,294.62667923,0.00037721,60]
[393211000,1762321946794,317.94312485,0.00037721,60]
[393211001,1762321950447,490.69759731,0.00037721,60]
[393211002,1762321953667,450.97,0.00017663,3]
[393211003,1762321963736,481.78282399,0.00037721,60]
[393211004,1762321974374,199.2923931,0.00037727,60]
[393211005,1762321989033,290.98378814,0.00037727,60]
[393211006,1762322003307,302.55452075,0.00037727,60]
[393211007,1762322007735,473.13994469,0.00037727,60]
[393211008,1762322009809,273.02413595,0.00037727,60]
[393211009,1762322010499,447.80740203,0.00037727,60]
[393211010,1762322012280,350.66470339,0.00037727,60]
[393211011,1762322012904,355.5644414,0.00037727,60]
[393211012,1762322016426,168.72774708,0.00037727,60]
[393211013,1762322018405,385.71198282,0.00037727,60]
[393211014,1762322021320,500.0,0.00037727,60]
[393211015,1762322021618,231.33468927,0.00037727,60]
[393211016,1762322023088,194.25678665,0.00037727,60]
[393211017,1762322023149,440.43028732,0.00037727,60]
[393211018,1762322026849,500.0,0.00037727,60]
[393211019,1762322027094,354.01878443,0.00037727,60]
[393211020,1762322028065,263.57609593,0.00037727,60]
[393211021,1762322028782,315.37798077,0.00037727,60]
[393211022,1762322031113,500.0,0.00037727,60]
[393211023,1762322031353,392.83,0.00037727,60]
[393211024,1762322032185,388.45456017,0.00037727,60]
[393211025,1762322032488,389.80362833,0.00037727,60]
[393211026,1762322033184,356.51488623,0.00037727,60]
[393211027,1762322034618,393.11437578,0.00037727,60]
[393211028,1762322036550,500.0,0.00037727,60]
[393211029,1762322036807,251.86483511,0.00037727,60]
[393211030,1762322036863,226.17435111,0.00037727,60]
[393211031,1762322038199,216.15064039,0.00037727,60]
[393211032,1762322039298,362.48565164,0.00037727,60]
[393211033,1762322041450,498.05839506,0.00037727,120]
[393211034,1762322044701,276.24234444,0.00037727,60]
[393211035,1762322044767,212.62725931,0.00037727,60]
[393211036,1762322045258,483.5818858,0.00037727,60]
[393211037,1762322047665,424.99252591,0.00037727,60]
[393211038,1762322049180,588.88,0.00037727,60]
[393211039,1762322051344,500.0,0.00037727,60]
[393211040,1762322051582,500.0,0.00037727,60]
[393211041,1762322051681,638.50279858,0.00037727,30]
[393211042,1762322051764,177.048445,0.00037727,60]
[393211043,1762322051822,500.0,0.00037727,60]
[393211044,1762322052048,583.30598342,0.00037727,60]
[393211045,1762322056996,180.29653357,0.00037727,60]
[393211046,1762322057367,336.84828059,0.00037727,60]
[393211047,1762322058291,500.0,0.00037727,60]
[393211048,1762322058541,500.0,0.00037727,60]
[393211049,1762322058791,500.0,0.00037727,60]
[393211050,1762322059023,500.0,0.00037727,60]
[393211051,1762322059259,271.10435428,0.00037727,60]
[393211052,1762322060369,291.6817899,0.00037727,60]
[393211053,1762322062243,313.70627683,0.00037727,60]
[393211054,1762322065986,515.44292606,0.00037727,60]
[393211055,1762322066059,203.57989592,0.00037727,60]
[393211056,1762322067024,558.86078357,0.00037727,120]
[393211057,1762322067268,397.29713847,0.00037727,60]
[393211058,1762322067766,302.4860527,0.00037727,60]
[393211059,1762322070021,162.59160582,0.00037727,60]
[393211060,1762322072538,468.46114811,0.00037727,60]
[393211061,1762322073501,271.66811291,0.00037727,60]
[393211062,1762322077520,411.4615682,0.00037727,60]
[393211063,1762322086580,3708.86956171,0.00037727,30]
[393211064,1762322087564,374.72878883,0.00037727,60]
[393211065,1762322087888,324.68363733,0.00037727,60]
[393211066,1762322089487,388.87316073,0.00037727,60]
[393211067,1762322090970,239.74338037,0.00037727,60]
[393211068,1762322093288,231.69528638,0.00037727,60]
[393211069,1762322094309,414.83377107,0.00037727,60]
[393211070,1762322096459,336.42828154,0.00037727,60]
[393211071,1762322098799,445.15850153,0.00037727,60]
[393211072,1762322101565,322.14310159,0.00037727,60]
[393211073,1762322103123,293.23123764,0.00037727,60]
[393211074,1762322103193,371.41722549,0.00037727,60]
[393211075,1762322103550,482.6536,0.00037727,60]
[393211076,1762322105956,497.86646057,0.00037727,60]
[393211077,1762322108513,387.48,0.00037727,60]
[393211078,1762322110349,481.78673655,0.00037727,60]
[393211079,1762322111133,505.67987244,0.00037727,60]
[393211080,1762322112078,344.51134888,0.00037727,60]
[393211081,1762322113894,266.06807174,0.00037727,60]
[393211082,1762322115074,167.0,0.00032683,120]
[393211083,1762322115150,381.90275737,0.00037727,60]
[393211084,1762322115391,230.44453393,0.00037727,60]
[393211085,1762322115666,313.51109297,0.00037727,60]
[393211086,1762322117167,202.05500891,0.00037727,60]
[393211087,1762322117704,385.10833123,0.00037727,60]
[393211088,1762322117767,446.65320774,0.00037727,60]
[393211089,1762322122247,216.20587706,0.00037727,60]
[393211090,1762322124226,396.18722029,0.00037727,60]
[393211091,1762322125854,239.90234181,0.00037727,60]
[393211092,1762322128486,257.8,0.00037727,60]
[393211093,1762322130317,264.86332179,0.00037727,60]
[393211094,1762322132507,275.22656681,0.00037727,60]
[393211095,1762322134114,229.85273419,0.00037727,60]
[393211096,1762322135527,500.0,0.00037727,60]
[393211097,1762322135762,500.0,0.00037727,60]
[393211098,1762322136026,410.1644215,0.00037727,60]
[393211099,1762322138529,210.9393608,0.00037727,60]
[393211100,1762322141712,382.4694857,0.00037727,60]
[393211101,1762322144173,292.93156432,0.00037727,60]
[393211102,1762322146829,467.6692441,0.00037727,60]
[393211103,1762322148676,444.78919656,0.00037727,60]
[393211104,1762322149537,558.04,0.00037727,60]
[393211105,1762322156177,349.68596131,0.00037727,60]
[393211106,1762322157057,166.05100169,0.00037727,60]
[393211107,1762322162049,414.9,0.00037727,60]
[393211108,1762322164166,288.96843504,0.00037727,60]
[393211109,1762322165113,500.0,0.00037727,60]
[393211110,1762322165351,500.0,0.00037727,60]
[393211111,1762322165601,164.67,0.00037727,60]
[393211112,1762322165829,505.15689803,0.00037727,60]
[393211113,1762322170477,209.67662781,0.00037727,60]
[393211114,1762322170592,490.68000906,0.00037727,60]
[393211115,1762322181377,405.15333764,0.00037727,60]
[393211116,1762322185998,253.15928894,0.00037727,60]
[393211117,1762322188107,500.0,0.00037727,60]
[393211118,1762322188275,283.09,0.00037727,60]
[393211119,1762322194661,509.03394776,0.00037727,60]
[393211120,1762322196476,242.0177344,0.00037727,60]
[393211121,1762322196566,235.80214157,0.00037727,60]
[393211122,1762322199899,500.0,0.00037727,60]
[393211123,1762322200145,500.0,0.00037727,60]
[393211124,1762322200416,309.98,0.00037727,60]
[393211125,1762322202828,255.12770876,0.00037727,60]
[393211126,1762322209113,500.0,0.00037727,60]
[393211127,1762322209177,462.7252114,0.00037727,60]
[393211128,1762322209352,540.31243767,0.00037727,60]
[393211129,1762322213937,429.22506389,0.00037727,60]
[393211130,1762322217456,500.0,0.00037727,60]
[393211131,1762322217586,-172.03165662,0.00015703,2]
[393211132,1762322217697,500.0,0.00037727,60]
[393211133,1762322217854,500.0,0.00037727,60]
[393211134,1762322217944,599.34,0.00037727,60]
[393211135,1762322218440,422.60769255,0.00037727,60]
[393211136,1762322219153,-47.80834338,0.00015703,2]
[393211137,1762322219176,-246.44365917,0.00016026,2]
[393211138,1762322222016,-40.13755335,0.00016026,2]
[393211139,1762322222038,-164.28104388,0.00016245,2]
[393211140,1762322223293,436.62833401,0.00037727,60]
[393211141,1762322223669,-183.04091796,0.00016245,2]
[393211142,1762322228808,301.006937,0.00037727,60]
[393211144,1762322231970,172.54034322,0.00037727,60]
[393211145,1762322237569,465.84869693,0.00037727,60]
[393211146,1762322242995,371.89277496,0.00037727,60]
[393211147,1762322247418,-42.03562073,0.00016245,2]
[393211148,1762322248726,-171.733597,0.00016478,2]
[393211149,1762322248753,-73.78520697,0.00016498,2]
[393211150,1762322250437,216.78,0.00037727,60]
[393211151,1762322250722,-191.08448377,0.00016498,2]
[393211152,1762322250820,235.37590454,0.00037727,60]
[393211153,1762322252283,-174.81030926,0.00016498,2]
[393211154,1762322252305,-66.53093488,0.00016999,2]
[393211155,1762322252546,1557.74038221,0.00016245,2]
[393211156,1762322253012,554.0,0.00037727,60]
[393211157,1762322253246,150.24328611,0.00037727,30]
[393211158,1762322255607,-256.00402178,0.00016999,2]
[393211159,1762322257179,-191.87235241,0.00016999,2]
[393211160,1762322257206,-40.35521432,0.00017028,2]
[393211161,1762322259863,-162.05304248,0.00017028,2]
[393211162,1762322262870,-453.59773987,0.00017028,2]
[393211163,1762322262901,-1476.0134925,0.00017028,2]
[393211164,1762322262934,-1200.0,0.00017099,2]
[393211165,1762322262969,-659.51,0.00017248,2]
[393211166,1762322263009,-500.0,0.00017499,2]
[393211167,1762322263041,-300.0,0.00017524,2]
[393211168,1762322263070,-300.0,0.00017524,2]
[393211169,1762322263265,-300.0,0.00017524,2]
[393211170,1762322263292,-3085.1430291,0.00017525,2]
[393211171,1762322263321,-632.492356,0.00017525,2]
[393211172,1762322263375,-3381.53782523,0.00017573,2]
[393211173,1762322263403,-500.0,0.00017573,2]
[393211174,1762322263551,-500.0,0.00017573,2]
[393211175,1762322263579,-335.80093231,0.00017636,2]
[393211176,1762322263653,-565.33248492,0.00017636,2]
[393211177,1762322263682,-159.78821236,0.00017672,2]
[393211178,1762322263711,-500.0,0.00017672,2]
[393211179,1762322263739,-166.81,0.00017672,2]
[393211180,1762322263767,-166.79,0.00017672,2]
[393211181,1762322263795,-167.1,0.00017672,2]
[393211182,1762322263826,-500.0,0.00017672,2]
[393211183,1762322263856,-500.0,0.00017672,2]
[393211184,1762322263885,-500.0,0.00017672,2]
[393211185,1762322263912,-500.0,0.00017672,2]
[393211186,1762322263942,-500.0,0.00017672,2]
[393211187,1762322263974,-500.0,0.00017672,2]
[393211188,1762322264006,-48.36860544,0.00017672,2]
[393211189,1762322264204,-451.63139456,0.00017672,2]
[393211190,1762322264233,-500.0,0.00017672,2]
[393211191,1762322264260,-500.0,0.00017672,2]
[393211192,1762322264288,-500.0,0.00017672,2]
[393211193,1762322264315,-500.0,0.00017672,2]
[393211194,1762322264343,-500.0,0.00017672,2]
[393211195,1762322264371,-500.0,0.00017672,2]
[393211196,1762322264400,-500.0,0.00017672,2]
[393211197,1762322264429,-500.0,0.00017672,2]
[393211198,1762322264460,-500.0,0.00017672,2]
[393211199,1762322264501,-500.0,0.00017672,2]
[393211200,1762322264533,-500.0,0.00017672,2]
[393211201,1762322264565,-500.0,0.00017672,2]
[393211202,1762322264593,-248.81,0.00017672,2]
[393211203,1762322264621,-182.63667914,0.00017673,2]
[393211204,1762322264648,-509.11257755,0.00017673,2]
[393211205,1762322264676,-500.0,0.00017673,2]
[393211206,1762322264704,-505.68262815,0.00017673,2]
[393211207,1762322264734,-500.0,0.00017673,2]
[393211208,1762322264763,-503.36666914,0.00017673,2]
[393211209,1762322264791,-500.0,0.00017673,2]
[393211210,1762322264911,-500.0,0.00017673,2]
[393211211,1762322264940,-500.0,0.00017673,2]
[393211212,1762322264972,-500.0,0.00017673,2]
[393211213,1762322266178,-3930.39025627,0.00017673,2]
[393211214,1762322266194,-10000.01,0.00017673,2]
[393211215,1762322266212,-10000.01,0.00017673,2]
[393211216,1762322266227,-10000.01,0.00017673,2]
[393211217,1762322266295,-10000.01,0.00017673,2]
[393211218,1762322266309,-10000.01,0.00017673,2]
[393211219,1762322266333,-10000.01,0.00017673,2]
[393211220,1762322266348,-10000.01,0.00017673,2]
[393211221,1762322266362,-10000.01,0.00017673,2]
[393211222,1762322266423,248.26873671,0.00037727,60]
[393211223,1762322266452,-10000.01,0.00017673,2]
[393211224,1762322266548,-10000.01,0.00017673,2]
[393211225,1762322271982,-10000.01,0.00017673,2]
[393211226,1762322272107,-10000.01,0.00017673,2]
[393211227,1762322272293,-10000.01,0.00017673,2]
[393211228,1762322272513,-10000.01,0.00017673,2]
[393211229,1762322272684,-10000.01,0.00017673,2]
[393211230,1762322272844,-10000.01,0.00017673,2]
[393211231,1762322273043,-10000.01,0.00017673,2]
[393211232,1762322273239,-10000.01,0.00017673,2]
[393211233,1762322273412,-10000.01,0.00017673,2]
[393211234,1762322273615,-10000.01,0.00017673,2]
[393211235,1762322280942,458.77895304,0.00037727,60]
[393211236,1762322281131,-986.86480661,0.00017397,2]
[393211237,1762322281162,-986.86480661,0.00017573,2]
[393211238,1762322282402,300.0,0.00017672,2]
[393211239,1762322283162,527.50440473,0.00037727,60]
[393211240,1762322288199,500.0,0.00037727,60]
[393211241,1762322288437,163.24195544,0.00037727,60]
[393211242,1762322288862,5000.0,0.00017673,2]
[393211243,1762322290748,-262.40238366,0.00017673,2]
[393211244,1762322292183,501.56501997,0.00037727,60]
[393211245,1762322293979,205.71679977,0.00037727,60]
[393211246,1762322295900,431.51261658,0.00037727,60]
[393211247,1762322296592,473.08541998,0.00037727,30]
[393211248,1762322300951,500.0,0.00037727,60]
[393211249,1762322301251,202.19535931,0.00037727,60]
[393211250,1762322304789,259.16533797,0.00037727,60]
[393211251,1762322312014,500.0,0.00037727,60]
[393211252,1762322312272,319.97358756,0.00037727,60]
[393211253,1762322315681,444.30626658,0.00037727,60]
[393211255,1762322336227,-345.38455942,0.00016447,2]
[393211256,1762322337754,500.0,0.00037727,60]
[393211257,1762322338013,386.35719699,0.00037727,60]
[393211258,1762322338947,-300.0,0.00016447,2]
[393211259,1762322341548,-181.54533025,0.00016447,2]
[393211260,1762322343396,475.40764716,0.00037727,60]
[393211261,1762322343774,-158.31836298,0.00016447,2]
[393211262,1762322345821,-156.23987852,0.00016447,2]
[393211263,1762322348078,-382.04304448,0.00016447,2]
[393211264,1762322353660,373.66568931,0.00037727,60]
[393211265,1762322365366,189.53093662,0.00037727,60]
[393211266,1762322365722,-234.31441551,0.00016447,2]
[393211267,1762322367405,-280.61190905,0.00016447,2]
[393211268,1762322377856,434.15312385,0.00037727,60]
[393211269,1762322380836,194.72632356,0.00037727,60]
[393211270,1762322391602,501.67489751,0.00037727,60]
[393211271,1762322395793,-203.05,0.00015483,2]
[393211272,1762322395821,-96.95,0.0001622,2]
[393211273,1762322398565,-280.49700088,0.0001622,2]
[393211274,1762322412243,151.0,0.00037727,60]
[393211275,1762322413720,156.587,0.00037727,60]
[393211276,1762322414357,162.380719,0.00037727,60]
[393211277,1762322415048,168.3888056,0.00037727,60]
[393211278,1762322415512,491.95197571,0.00037727,60]
[393211279,1762322415676,174.61919141,0.00037727,60]
[393211280,1762322416354,181.08010149,0.00037727,60]
[393211281,1762322416610,284.26155775,0.00037728,60]
[393211282,1762322417230,187.78006525,0.00037728,60]
[393211283,1762322417332,168.73689284,0.00037728,60]
[393211284,1762322417855,194.72792766,0.00037728,60]
[393211285,1762322418476,201.93286099,0.00037728,60]
[393211286,1762322419149,209.40437684,0.00037728,60]
[393211287,1762322419842,217.15233878,0.00037728,60]
[393211288,1762322420543,225.18697532,0.00037728,60]
[393211289,1762322421220,233.51889341,0.00037728,60]
[393211290,1762322421846,203.12537324,0.00037728,60]
[393211291,1762322421926,242.15909246,0.00037728,60]
[393211292,1762322422612,242.15909246,0.00037728,60]
[393211293,1762322423693,445.35065062,0.00037728,60]
[393211295,1762322430811,467.45923634,0.00037728,60]
[393211296,1762322432309,432.38092241,0.00037728,60]
[393211297,1762322435677,291.96069034,0.00037728,60]
[393211298,1762322443956,440.30666027,0.00037728,60]
[393211299,1762322447522,476.0092892,0.00037728,60]
[393211300,1762322450396,299.39801714,0.00037728,60]
[393211301,1762322457249,228.72359862,0.00037728,60]
[393211302,1762322459502,499.07294234,0.00037728,60]
[393211303,1762322460424,538.80352072,0.00037728,60]
[393211304,1762322464291,212.72080756,0.00037728,60]
[393211305,1762322465204,500.0,0.00037728,60]
[393211306,1762322465433,291.21994573,0.00037728,60]
[393211307,1762322470371,264.31693589,0.00037728,60]
[393211308,1762322475378,351.63424803,0.00037728,60]
[393211309,1762322476548,425.38630356,0.00037728,60]
[393211310,1762322476885,397.54077549,0.00037728,60]
[393211311,1762322478628,241.88343835,0.00037728,60]
[393211312,1762322480519,302.98868478,0.00037728,60]
[393211313,1762322482603,375.54339152,0.00037728,60]
[393211314,1762322483129,500.0,0.00037728,60]
[393211315,1762322483395,220.02048263,0.00037728,60]
[393211316,1762322485977,950.52402816,0.00021431,7]
[393211317,1762322486341,-195.66,0.00016242,2]
[393211318,1762322486363,-64.59817174,0.00016344,2]
[393211319,1762322487760,231.24548724,0.00037728,60]